[Event "January 9 Early 2024"]
[Site "https://www.chess.com"]
[Date "2024.01.11"]
[Round "6"]
[White "Pranav, V"]
[Black "Nakamura, Hikaru"]
[Result "1-0"]
[Board "265"]
[TimeControl "180+1"]
[WhiteFideId "25060783"]
[BlackFideId "2016192"]
[WhiteElo "3055"]
[BlackElo "3254"]
[WhiteTeam "IND"]
[BlackTeam "USA"]
[WhiteClock "0:00:04"]
[BlackClock "0:00:04"]

1. e4 {[%clk 0:03:00]}  e5 {[%clk 0:02:54]} 2. Nf3 {[%clk 0:03:00]}  Nc6 {[%clk 0:02:53]} 3. Bb5 {[%clk 0:03:01]}  a6 {[%clk 0:02:51]} 4. Ba4 {[%clk 0:03:01]}  d6 {[%clk 0:02:51]} 5. O-O {[%clk 0:02:58]}  Bd7 {[%clk 0:02:51]} 6. c3 {[%clk 0:02:58]}  g6 {[%clk 0:02:50]} 7. d4 {[%clk 0:02:58]}  Bg7 {[%clk 0:02:51]} 8. Re1 {[%clk 0:02:58]}  b5 {[%clk 0:02:47]} 9. Bb3 {[%clk 0:02:57]}  Nf6 {[%clk 0:02:43]} 10. h3 {[%clk 0:02:56]}  O-O {[%clk 0:02:40]} 11. a4 {[%clk 0:02:41]}  Rb8 {[%clk 0:02:13]} 12. axb5 {[%clk 0:02:30]}  axb5 {[%clk 0:02:14]} 13. dxe5 {[%clk 0:02:29]}  Nxe5 {[%clk 0:02:13]} 14. Nxe5 {[%clk 0:02:25]}  dxe5 {[%clk 0:02:13]} 15. Bg5 {[%clk 0:02:19]}  h6 {[%clk 0:02:11]} 16. Bxf6 {[%clk 0:02:19]}  Bxf6 {[%clk 0:02:11]} 17. Nd2 {[%clk 0:02:19]}  Rb6 {[%clk 0:01:56]} 18. Nf3 {[%clk 0:02:14]}  Rd6 {[%clk 0:01:56]} 19. Qe2 {[%clk 0:02:14]}  Kg7 {[%clk 0:01:56]} 20. Red1 {[%clk 0:02:14]}  Qe7 {[%clk 0:01:44]} 21. Ra7 {[%clk 0:02:07]}  Rxd1+ {[%clk 0:01:28]} 22. Qxd1 {[%clk 0:02:07]}  Qc5 {[%clk 0:01:29]} 23. Ra1 {[%clk 0:02:03]}  Bc6 {[%clk 0:01:02]} 24. Qe2 {[%clk 0:02:02]}  Rd8 {[%clk 0:00:59]} 25. g3 {[%clk 0:01:43]}  Qb6 {[%clk 0:00:49]} 26. Kg2 {[%clk 0:01:36]}  Bb7 {[%clk 0:00:45]} 27. Rd1 {[%clk 0:01:11]}  Rxd1 {[%clk 0:00:44]} 28. Bxd1 {[%clk 0:01:12]}  c5 {[%clk 0:00:42]} 29. c4 {[%clk 0:01:03]}  bxc4 {[%clk 0:00:22]} 30. Qxc4 {[%clk 0:01:03]}  Qb4 {[%clk 0:00:23]} 31. Qxb4 {[%clk 0:00:53]}  cxb4 {[%clk 0:00:23]} 32. Bc2 {[%clk 0:00:53]}  Kf8 {[%clk 0:00:23]} 33. Nd2 {[%clk 0:00:41]}  Ba6 {[%clk 0:00:17]} 34. Bb3 {[%clk 0:00:38]}  Ke7 {[%clk 0:00:17]} 35. Bc4 {[%clk 0:00:38]}  Bb7 {[%clk 0:00:16]} 36. Bd5 {[%clk 0:00:30]}  Bxd5 {[%clk 0:00:13]} 37. exd5 {[%clk 0:00:31]}  Bg7 {[%clk 0:00:13]} 38. Nc4 {[%clk 0:00:29]}  b3 {[%clk 0:00:09]} 39. f3 {[%clk 0:00:28]}  f5 {[%clk 0:00:09]} 40. Kf2 {[%clk 0:00:25]}  h5 {[%clk 0:00:06]} 41. Ke2 {[%clk 0:00:18]}  Kd7 {[%clk 0:00:05]} 42. g4 {[%clk 0:00:12]}  hxg4 {[%clk 0:00:05]} 43. hxg4 {[%clk 0:00:11]}  Bf6 {[%clk 0:00:06]} 44. gxf5 {[%clk 0:00:11]}  gxf5 {[%clk 0:00:07]} 45. Kd3 {[%clk 0:00:11]}  Bg7 {[%clk 0:00:06]} 46. Kd2 {[%clk 0:00:05]}  Bf6 {[%clk 0:00:06]} 47. Ke2 {[%clk 0:00:05]}  Bg7 {[%clk 0:00:06]} 48. Ne3 {[%clk 0:00:04]}  e4 {[%clk 0:00:04]} 49. fxe4 {[%clk 0:00:03]}  Bxb2 {[%clk 0:00:01]} 50. Nc4 {[%clk 0:00:03]}  Bc3 {[%clk 0:00:01]} 51. exf5 {[%clk 0:00:03]}  b2 {[%clk 0:00:02]} 52. Nxb2 {[%clk 0:00:03]}  Bb4 {[%clk 0:00:02]} 53. Kd3 {[%clk 0:00:04]}  Kd6 {[%clk 0:00:03]} 54. Ke4 {[%clk 0:00:04]}  Ke7 {[%clk 0:00:02]} 55. Nd3 {[%clk 0:00:05]}  Bd6 {[%clk 0:00:02]} 56. Ne5 {[%clk 0:00:05]}  Kf6 {[%clk 0:00:03]} 57. Nc4 {[%clk 0:00:06]}  Bh2 {[%clk 0:00:03]} 58. d6 {[%clk 0:00:06]}  Bg3 {[%clk 0:00:04]} 59. d7 {[%clk 0:00:04]}  Ke7 {[%clk 0:00:04]} 60. Ne5 {[%clk 0:00:05]}  Be1 {[%clk 0:00:02]} 61. f6+ {[%clk 0:00:04]}  Kd8 {[%clk 0:00:02]} 62. f7 {[%clk 0:00:04]}  Bb4 {[%clk 0:00:03]} 63. Kf5 {[%clk 0:00:03]}  Ba3 {[%clk 0:00:03]} 64. Kg6 {[%clk 0:00:03]}  Bf8 {[%clk 0:00:02]} 65. Kh7 {[%clk 0:00:03]}  Ba3 {[%clk 0:00:03]} 66. Kg8 {[%clk 0:00:04]}  Bd6 {[%clk 0:00:04]} 67. f8=Q+ {[%clk 0:00:04]} 1-0

[Event "January 9 Early 2024"]
[Site "https://www.chess.com"]
[Date "2024.01.11"]
[Round "6"]
[White "Putri, Regita Desyari"]
[Black "Dinu, Dumitru-Daniel"]
[Result "1-0"]
[Board "266"]
[TimeControl "180+1"]
[WhiteFideId "7109083"]
[BlackFideId "1208403"]
[WhiteElo "2234"]
[BlackElo "2487"]
[WhiteTeam "INA"]
[BlackTeam "ROU"]
[WhiteClock "0:00:13"]
[BlackClock "0:00:05"]

1. e4 {[%clk 0:02:58]}  c5 {[%clk 0:02:59]} 2. Nf3 {[%clk 0:02:57]}  d6 {[%clk 0:02:59]} 3. d4 {[%clk 0:02:57]}  cxd4 {[%clk 0:02:59]} 4. Nxd4 {[%clk 0:02:58]}  Nf6 {[%clk 0:02:59]} 5. Nc3 {[%clk 0:02:57]}  a6 {[%clk 0:02:59]} 6. Be2 {[%clk 0:02:56]}  g6 {[%clk 0:02:59]} 7. O-O {[%clk 0:02:55]}  Bg7 {[%clk 0:02:59]} 8. a4 {[%clk 0:02:50]}  O-O {[%clk 0:02:58]} 9. Be3 {[%clk 0:02:50]}  Nbd7 {[%clk 0:02:48]} 10. a5 {[%clk 0:02:34]}  Nc5 {[%clk 0:02:35]} 11. f3 {[%clk 0:02:34]}  Bd7 {[%clk 0:02:25]} 12. Qd2 {[%clk 0:02:33]}  Rc8 {[%clk 0:02:22]} 13. Rfd1 {[%clk 0:02:31]}  Qc7 {[%clk 0:01:38]} 14. Bf1 {[%clk 0:02:26]}  Rfd8 {[%clk 0:01:08]} 15. Qf2 {[%clk 0:02:15]}  Qb8 {[%clk 0:01:04]} 16. Nd5 {[%clk 0:02:03]}  Nxd5 {[%clk 0:00:59]} 17. exd5 {[%clk 0:02:04]}  Be8 {[%clk 0:00:51]} 18. b4 {[%clk 0:01:53]}  Nd7 {[%clk 0:00:49]} 19. c4 {[%clk 0:01:53]}  Ne5 {[%clk 0:00:44]} 20. Rac1 {[%clk 0:01:52]}  Ba4 {[%clk 0:00:31]} 21. Re1 {[%clk 0:01:51]}  Rc7 {[%clk 0:00:25]} 22. Qa2 {[%clk 0:01:15]}  Be8 {[%clk 0:00:23]} 23. h3 {[%clk 0:01:13]}  Rdc8 {[%clk 0:00:23]} 24. f4 {[%clk 0:01:10]}  Nd7 {[%clk 0:00:23]} 25. Bf2 {[%clk 0:01:07]}  Bf6 {[%clk 0:00:21]} 26. b5 {[%clk 0:00:59]}  Nc5 {[%clk 0:00:19]} 27. b6 {[%clk 0:00:57]}  Rd7 {[%clk 0:00:19]} 28. g4 {[%clk 0:00:43]}  Rdd8 {[%clk 0:00:19]} 29. Qe2 {[%clk 0:00:38]}  Bd7 {[%clk 0:00:16]} 30. g5 {[%clk 0:00:37]}  Bg7 {[%clk 0:00:16]} 31. h4 {[%clk 0:00:30]}  Re8 {[%clk 0:00:14]} 32. h5 {[%clk 0:00:29]}  e6 {[%clk 0:00:14]} 33. dxe6 {[%clk 0:00:27]}  Nxe6 {[%clk 0:00:14]} 34. Nxe6 {[%clk 0:00:27]}  Rxe6 {[%clk 0:00:14]} 35. Qf3 {[%clk 0:00:25]}  Rce8 {[%clk 0:00:13]} 36. Rxe6 {[%clk 0:00:25]}  Bxe6 {[%clk 0:00:14]} 37. h6 {[%clk 0:00:24]}  Bh8 {[%clk 0:00:12]} 38. Bg2 {[%clk 0:00:24]}  Re7 {[%clk 0:00:12]} 39. c5 {[%clk 0:00:20]}  dxc5 {[%clk 0:00:11]} 40. Bxc5 {[%clk 0:00:21]}  Rd7 {[%clk 0:00:11]} 41. Be3 {[%clk 0:00:20]}  Bd5 {[%clk 0:00:08]} 42. Qf2 {[%clk 0:00:20]}  Bxg2 {[%clk 0:00:07]} 43. Qxg2 {[%clk 0:00:20]}  Bd4 {[%clk 0:00:03]} 44. Bxd4 {[%clk 0:00:20]}  Rxd4 {[%clk 0:00:04]} 45. Qc2 {[%clk 0:00:20]}  Rd8 {[%clk 0:00:03]} 46. Qc7 {[%clk 0:00:19]}  Rf8 {[%clk 0:00:04]} 47. Qxb8 {[%clk 0:00:19]}  Rxb8 {[%clk 0:00:04]} 48. Rc7 {[%clk 0:00:20]}  Kf8 {[%clk 0:00:05]} 49. Kf2 {[%clk 0:00:20]}  Ke8 {[%clk 0:00:05]} 50. Ke3 {[%clk 0:00:20]}  Rd8 {[%clk 0:00:03]} 51. Rxb7 {[%clk 0:00:20]}  Rd5 {[%clk 0:00:04]} 52. Ra7 {[%clk 0:00:18]}  Rxa5 {[%clk 0:00:04]} 53. b7 {[%clk 0:00:19]}  Rb5 {[%clk 0:00:03]} 54. Ra8+ {[%clk 0:00:19]}  Ke7 {[%clk 0:00:03]} 55. b8=Q {[%clk 0:00:20]}  Rxb8 {[%clk 0:00:03]} 56. Rxb8 {[%clk 0:00:21]}  Ke6 {[%clk 0:00:04]} 57. Ra8 {[%clk 0:00:21]}  Kf5 {[%clk 0:00:04]} 58. Rxa6 {[%clk 0:00:20]}  Kg4 {[%clk 0:00:04]} 59. Ra7 {[%clk 0:00:18]}  f5 {[%clk 0:00:04]} 60. Rxh7 {[%clk 0:00:17]}  Kh5 {[%clk 0:00:04]} 61. Rg7 {[%clk 0:00:17]}  Kg4 {[%clk 0:00:04]} 62. h7 {[%clk 0:00:17]}  Kg3 {[%clk 0:00:04]} 63. h8=Q {[%clk 0:00:17]}  Kg4 {[%clk 0:00:05]} 64. Ra7 {[%clk 0:00:17]}  Kg3 {[%clk 0:00:05]} 65. Rh7 {[%clk 0:00:13]}  Kg4 {[%clk 0:00:05]} 66. Rh4+ {[%clk 0:00:12]}  Kg3 {[%clk 0:00:05]} 67. Rh3+ {[%clk 0:00:13]}  Kg2 {[%clk 0:00:06]} 68. Rh2+ {[%clk 0:00:13]}  Kg3 {[%clk 0:00:05]} 69. Qh4# {[%clk 0:00:13]} 1-0

[Event "January 9 Early 2024"]
[Site "https://www.chess.com"]
[Date "2024.01.11"]
[Round "6"]
[White "Jimenez Almeida, Luis David"]
[Black "Llari, Marc"]
[Result "1/2-1/2"]
[Board "267"]
[TimeControl "180+1"]
[WhiteFideId "22242244"]
[BlackFideId "651044269"]
[WhiteElo "2509"]
[BlackElo "2319"]
[WhiteTeam "ESP"]
[BlackTeam "FRA"]
[WhiteClock "0:00:07"]
[BlackClock "0:00:11"]

1. e4 {[%clk 0:01:53]}  e6 {[%clk 0:02:58]} 2. d4 {[%clk 0:01:53]}  d5 {[%clk 0:02:58]} 3. e5 {[%clk 0:01:53]}  c5 {[%clk 0:02:57]} 4. c3 {[%clk 0:01:54]}  Nc6 {[%clk 0:02:57]} 5. Nf3 {[%clk 0:01:54]}  Qb6 {[%clk 0:02:55]} 6. a3 {[%clk 0:01:54]}  c4 {[%clk 0:02:48]} 7. Nbd2 {[%clk 0:01:54]}  Na5 {[%clk 0:02:46]} 8. Rb1 {[%clk 0:01:54]}  Bd7 {[%clk 0:02:45]} 9. g3 {[%clk 0:01:51]}  Rc8 {[%clk 0:02:42]} 10. h4 {[%clk 0:01:51]}  Qc6 {[%clk 0:02:34]} 11. Bh3 {[%clk 0:01:45]}  Qa4 {[%clk 0:02:30]} 12. Qe2 {[%clk 0:01:44]}  Qc2 {[%clk 0:02:17]} 13. O-O {[%clk 0:01:43]}  Nb3 {[%clk 0:02:10]} 14. Ne1 {[%clk 0:01:37]}  Nxc1 {[%clk 0:01:58]} 15. Qe3 {[%clk 0:01:38]}  Qd1 {[%clk 0:01:36]} 16. Nef3 {[%clk 0:01:37]}  Qe2 {[%clk 0:01:35]} 17. Rbxc1 {[%clk 0:01:30]}  Qxe3 {[%clk 0:01:34]} 18. fxe3 {[%clk 0:01:31]}  Ne7 {[%clk 0:01:30]} 19. e4 {[%clk 0:01:27]}  dxe4 {[%clk 0:01:29]} 20. Nxe4 {[%clk 0:01:28]}  Nd5 {[%clk 0:01:28]} 21. Nfg5 {[%clk 0:01:25]}  Ne3 {[%clk 0:01:19]} 22. Rf3 {[%clk 0:01:24]}  Nf5 {[%clk 0:01:18]} 23. Rcf1 {[%clk 0:01:08]}  h6 {[%clk 0:01:15]} 24. Nxf7 {[%clk 0:01:04]}  Kxf7 {[%clk 0:01:14]} 25. g4 {[%clk 0:01:04]}  g6 {[%clk 0:01:13]} 26. gxf5 {[%clk 0:00:52]}  gxf5 {[%clk 0:01:14]} 27. Nf6 {[%clk 0:00:52]}  Bc6 {[%clk 0:01:10]} 28. d5 {[%clk 0:00:53]}  Bc5+ {[%clk 0:01:10]} 29. Kh2 {[%clk 0:00:50]}  Bxd5 {[%clk 0:01:08]} 30. Nxd5 {[%clk 0:00:50]}  exd5 {[%clk 0:01:09]} 31. Rxf5+ {[%clk 0:00:42]}  Ke8 {[%clk 0:01:08]} 32. Rf7 {[%clk 0:00:39]}  Rd8 {[%clk 0:01:08]} 33. Rxb7 {[%clk 0:00:36]}  Rf8 {[%clk 0:01:05]} 34. Rxf8+ {[%clk 0:00:24]}  Kxf8 {[%clk 0:01:06]} 35. Kg3 {[%clk 0:00:20]}  d4 {[%clk 0:01:00]} 36. cxd4 {[%clk 0:00:21]}  Rxd4 {[%clk 0:01:00]} 37. Bf5 {[%clk 0:00:22]}  Be7 {[%clk 0:00:52]} 38. h5 {[%clk 0:00:20]}  Bh4+ {[%clk 0:00:51]} 39. Kf3 {[%clk 0:00:20]}  Bg5 {[%clk 0:00:52]} 40. Bg6 {[%clk 0:00:20]}  Rf4+ {[%clk 0:00:50]} 41. Kg3 {[%clk 0:00:20]}  a5 {[%clk 0:00:47]} 42. Ra7 {[%clk 0:00:18]}  Rd4 {[%clk 0:00:44]} 43. Rxa5 {[%clk 0:00:18]}  Bc1 {[%clk 0:00:41]} 44. Rb5 {[%clk 0:00:18]}  Rd2 {[%clk 0:00:41]} 45. a4 {[%clk 0:00:14]}  Rxb2 {[%clk 0:00:39]} 46. Rc5 {[%clk 0:00:15]}  Rb4 {[%clk 0:00:33]} 47. a5 {[%clk 0:00:14]}  Be3 {[%clk 0:00:30]} 48. Rc7 {[%clk 0:00:13]}  c3 {[%clk 0:00:24]} 49. Rxc3 {[%clk 0:00:11]}  Bf4+ {[%clk 0:00:25]} 50. Kf3 {[%clk 0:00:10]}  Bxe5 {[%clk 0:00:25]} 51. Rc8+ {[%clk 0:00:09]}  Kg7 {[%clk 0:00:25]} 52. a6 {[%clk 0:00:08]}  Ra4 {[%clk 0:00:25]} 53. Rc6 {[%clk 0:00:08]}  Bd4 {[%clk 0:00:23]} 54. Ke2 {[%clk 0:00:08]}  Ra3 {[%clk 0:00:21]} 55. Kd2 {[%clk 0:00:08]}  Be3+ {[%clk 0:00:20]} 56. Kc2 {[%clk 0:00:08]}  Bd4 {[%clk 0:00:21]} 57. Bd3 {[%clk 0:00:06]}  Bg1 {[%clk 0:00:17]} 58. Bc4 {[%clk 0:00:05]}  Be3 {[%clk 0:00:16]} 59. Rg6+ {[%clk 0:00:05]}  Kf8 {[%clk 0:00:15]} 60. Re6 {[%clk 0:00:04]}  Bd4 {[%clk 0:00:13]} 61. Rg6 {[%clk 0:00:05]}  Ke7 {[%clk 0:00:12]} 62. Bd3 {[%clk 0:00:05]}  Be3 {[%clk 0:00:10]} 63. Rg7+ {[%clk 0:00:04]}  Kd6 {[%clk 0:00:10]} 64. Rb7 {[%clk 0:00:05]}  Kc6 {[%clk 0:00:09]} 65. Rg7 {[%clk 0:00:05]}  Kb6 {[%clk 0:00:09]} 66. Rg6+ {[%clk 0:00:06]}  Ka7 {[%clk 0:00:10]} 67. Bc4 {[%clk 0:00:07]}  Bg5 {[%clk 0:00:09]} 68. Bd3 {[%clk 0:00:07]}  Ra5 {[%clk 0:00:09]} 69. Kb3 {[%clk 0:00:07]}  Rc5 {[%clk 0:00:09]} 70. Bc4 {[%clk 0:00:07]}  Rc7 {[%clk 0:00:10]} 71. Re6 {[%clk 0:00:07]}  Rg7 {[%clk 0:00:10]} 72. Kb4 {[%clk 0:00:07]}  Rc7 {[%clk 0:00:10]} 73. Kb5 {[%clk 0:00:07]}  Be3 {[%clk 0:00:10]} 74. Re5 {[%clk 0:00:08]}  Bf4 {[%clk 0:00:10]} 75. Rf5 {[%clk 0:00:08]}  Bg5 {[%clk 0:00:10]} 76. Re5 {[%clk 0:00:08]}  Re7 {[%clk 0:00:10]} 77. Rf5 {[%clk 0:00:08]}  Rc7 {[%clk 0:00:11]} 78. Rd5 {[%clk 0:00:07]}  Re7 {[%clk 0:00:11]} 79. Rf5 {[%clk 0:00:07]}  Rc7 {[%clk 0:00:11]} 1/2-1/2

[Event "January 9 Early 2024"]
[Site "https://www.chess.com"]
[Date "2024.01.11"]
[Round "6"]
[White "Khouri, Ahmed Abbas"]
[Black "Mirzoev, Azer"]
[Result "0-1"]
[Board "268"]
[TimeControl "180+1"]
[WhiteFideId "9301518"]
[BlackFideId "13400304"]
[WhiteElo "2277"]
[BlackElo "2637"]
[WhiteTeam "UAE"]
[BlackTeam "AZE"]
[WhiteClock "0:00:02"]
[BlackClock "0:00:05"]

1. e4 {[%clk 0:02:59]}  c5 {[%clk 0:03:00]} 2. f4 {[%clk 0:02:59]}  e6 {[%clk 0:02:59]} 3. Nf3 {[%clk 0:02:59]}  d5 {[%clk 0:03:00]} 4. Bb5+ {[%clk 0:02:59]}  Bd7 {[%clk 0:02:59]} 5. Bxd7+ {[%clk 0:02:59]}  Qxd7 {[%clk 0:02:58]} 6. Nc3 {[%clk 0:03:00]}  d4 {[%clk 0:02:57]} 7. Ne2 {[%clk 0:03:00]}  d3 {[%clk 0:02:57]} 8. Nc3 {[%clk 0:02:59]}  Nc6 {[%clk 0:02:54]} 9. O-O {[%clk 0:02:59]}  Rd8 {[%clk 0:02:50]} 10. cxd3 {[%clk 0:02:55]}  Qxd3 {[%clk 0:02:49]} 11. Qa4 {[%clk 0:02:55]}  Nf6 {[%clk 0:02:41]} 12. Re1 {[%clk 0:02:39]}  a6 {[%clk 0:02:36]} 13. b3 {[%clk 0:01:46]}  Be7 {[%clk 0:02:32]} 14. Bb2 {[%clk 0:01:42]}  O-O {[%clk 0:02:30]} 15. Nd1 {[%clk 0:01:41]}  Nb4 {[%clk 0:02:13]} 16. Nf2 {[%clk 0:01:33]}  Qd7 {[%clk 0:01:44]} 17. Qxd7 {[%clk 0:01:32]}  Rxd7 {[%clk 0:01:42]} 18. Rec1 {[%clk 0:01:03]}  Rfd8 {[%clk 0:01:36]} 19. d4 {[%clk 0:00:56]}  cxd4 {[%clk 0:01:32]} 20. Bxd4 {[%clk 0:00:57]}  Rxd4 {[%clk 0:01:19]} 21. Nxd4 {[%clk 0:00:53]}  Rxd4 {[%clk 0:01:20]} 22. e5 {[%clk 0:00:41]}  Ne8 {[%clk 0:01:01]} 23. Rc8 {[%clk 0:00:32]}  Kf8 {[%clk 0:00:58]} 24. g3 {[%clk 0:00:28]}  Nc6 {[%clk 0:00:53]} 25. Rc1 {[%clk 0:00:21]}  g5 {[%clk 0:00:47]} 26. Ng4 {[%clk 0:00:04]}  gxf4 {[%clk 0:00:40]} 27. Rf1 {[%clk 0:00:04]}  fxg3 {[%clk 0:00:24]} 28. Nf6 {[%clk 0:00:03]}  Bxf6 {[%clk 0:00:19]} 29. exf6 {[%clk 0:00:04]}  gxh2+ {[%clk 0:00:16]} 30. Kxh2 {[%clk 0:00:05]}  Rd8 {[%clk 0:00:12]} 31. Rxd8 {[%clk 0:00:04]}  Nxd8 {[%clk 0:00:12]} 32. Kg3 {[%clk 0:00:05]}  Nc6 {[%clk 0:00:11]} 33. Kg4 {[%clk 0:00:05]}  Ne5+ {[%clk 0:00:10]} 34. Kg5 {[%clk 0:00:06]}  Nd7 {[%clk 0:00:10]} 35. Rh1 {[%clk 0:00:04]}  Nexf6 {[%clk 0:00:10]} 36. Rc1 {[%clk 0:00:04]}  Nd5 {[%clk 0:00:09]} 37. Kh6 {[%clk 0:00:04]}  Ke7 {[%clk 0:00:09]} 38. Kxh7 {[%clk 0:00:04]}  f5 {[%clk 0:00:10]} 39. Kh6 {[%clk 0:00:05]}  f4 {[%clk 0:00:10]} 40. Kg5 {[%clk 0:00:05]}  Kd6 {[%clk 0:00:10]} 41. Rd1 {[%clk 0:00:04]}  Nc5 {[%clk 0:00:09]} 42. Kg4 {[%clk 0:00:04]}  Ne4 {[%clk 0:00:09]} 43. Rc1 {[%clk 0:00:04]}  Nec3 {[%clk 0:00:09]} 44. Rh1 {[%clk 0:00:03]}  Nxa2 {[%clk 0:00:09]} 45. Kf3 {[%clk 0:00:03]}  Nab4 {[%clk 0:00:09]} 46. Ke4 {[%clk 0:00:03]}  Nc6 {[%clk 0:00:09]} 47. Rh8 {[%clk 0:00:03]}  Kc5 {[%clk 0:00:08]} 48. Re8 {[%clk 0:00:03]}  Nc7 {[%clk 0:00:07]} 49. Rh8 {[%clk 0:00:03]}  e5 {[%clk 0:00:07]} 50. Rh7 {[%clk 0:00:03]}  Kb6 {[%clk 0:00:07]} 51. Rh6 {[%clk 0:00:03]}  Nb5 {[%clk 0:00:07]} 52. Rh7 {[%clk 0:00:02]}  a5 {[%clk 0:00:07]} 53. Kd5 {[%clk 0:00:02]}  Nbd4 {[%clk 0:00:07]} 54. Kc4 {[%clk 0:00:02]}  Nf5 {[%clk 0:00:07]} 55. Rh5 {[%clk 0:00:01]}  Ne3+ {[%clk 0:00:07]} 56. Kc3 {[%clk 0:00:02]}  f3 {[%clk 0:00:06]} 57. Rh3 {[%clk 0:00:02]}  e4 {[%clk 0:00:06]} 58. Kd2 {[%clk 0:00:03]}  Nd5 {[%clk 0:00:06]} 59. Rh5 {[%clk 0:00:02]}  Kc5 {[%clk 0:00:06]} 60. Rh8 {[%clk 0:00:01]}  e3+ {[%clk 0:00:06]} 61. Kd3 {[%clk 0:00:02]}  f2 {[%clk 0:00:06]} 62. Ke2 {[%clk 0:00:02]}  Nd4+ {[%clk 0:00:06]} 63. Kd3 {[%clk 0:00:02]}  f1=Q+ {[%clk 0:00:05]} 0-1

[Event "January 9 Early 2024"]
[Site "https://www.chess.com"]
[Date "2024.01.11"]
[Round "6"]
[White "Leschinsky, Gary"]
[Black "Antunez Soler, Luis"]
[Result "0-1"]
[Board "269"]
[TimeControl "180+1"]
[WhiteFideId "30951321"]
[BlackFideId "3513335"]
[WhiteElo "2420"]
[BlackElo "2594"]
[WhiteTeam "USA"]
[BlackTeam "CUB"]
[WhiteClock "0:00:01"]
[BlackClock "0:00:04"]

1. d4 {[%clk 0:02:53]}  d5 {[%clk 0:02:59]} 2. c4 {[%clk 0:02:53]}  c6 {[%clk 0:02:59]} 3. Nf3 {[%clk 0:02:54]}  Nf6 {[%clk 0:02:59]} 4. Nc3 {[%clk 0:02:55]}  dxc4 {[%clk 0:03:00]} 5. a4 {[%clk 0:02:53]}  Bf5 {[%clk 0:03:00]} 6. e3 {[%clk 0:02:54]}  e6 {[%clk 0:03:00]} 7. Bxc4 {[%clk 0:02:54]}  Bb4 {[%clk 0:03:01]} 8. O-O {[%clk 0:02:55]}  Nbd7 {[%clk 0:03:02]} 9. Qe2 {[%clk 0:02:55]}  Bg6 {[%clk 0:03:02]} 10. Nh4 {[%clk 0:02:53]}  Bh5 {[%clk 0:03:02]} 11. f3 {[%clk 0:02:49]}  Nd5 {[%clk 0:03:02]} 12. g4 {[%clk 0:02:48]}  Qxh4 {[%clk 0:03:01]} 13. gxh5 {[%clk 0:02:48]}  Qxh5 {[%clk 0:02:54]} 14. Bd2 {[%clk 0:02:47]}  O-O {[%clk 0:02:52]} 15. Nxd5 {[%clk 0:02:38]}  Bxd2 {[%clk 0:02:29]} 16. Nf4 {[%clk 0:02:34]}  Qg5+ {[%clk 0:02:24]} 17. Kh1 {[%clk 0:02:35]}  Bb4 {[%clk 0:02:19]} 18. Rg1 {[%clk 0:02:35]}  Qh6 {[%clk 0:02:08]} 19. Rg4 {[%clk 0:02:34]}  Nf6 {[%clk 0:01:39]} 20. Rg2 {[%clk 0:02:01]}  Nd5 {[%clk 0:01:38]} 21. Rag1 {[%clk 0:01:57]}  g6 {[%clk 0:01:37]} 22. Bxd5 {[%clk 0:01:50]}  cxd5 {[%clk 0:01:36]} 23. Nd3 {[%clk 0:01:46]}  Bd6 {[%clk 0:01:36]} 24. f4 {[%clk 0:01:46]}  Kh8 {[%clk 0:01:33]} 25. Nc5 {[%clk 0:01:35]}  Bxc5 {[%clk 0:01:25]} 26. dxc5 {[%clk 0:01:36]}  Rac8 {[%clk 0:01:12]} 27. b4 {[%clk 0:01:35]}  Qg7 {[%clk 0:00:59]} 28. Qf3 {[%clk 0:01:29]}  Qc3 {[%clk 0:00:55]} 29. Qh3 {[%clk 0:00:40]}  Qxb4 {[%clk 0:00:51]} 30. Qh6 {[%clk 0:00:38]}  Qe4 {[%clk 0:00:43]} 31. h4 {[%clk 0:00:38]}  Qf5 {[%clk 0:00:36]} 32. Kh2 {[%clk 0:00:36]}  Rg8 {[%clk 0:00:34]} 33. Rg5 {[%clk 0:00:29]}  Qf6 {[%clk 0:00:33]} 34. h5 {[%clk 0:00:24]}  Qg7 {[%clk 0:00:33]} 35. Qxg7+ {[%clk 0:00:23]}  Rxg7 {[%clk 0:00:34]} 36. hxg6 {[%clk 0:00:23]}  hxg6 {[%clk 0:00:29]} 37. e4 {[%clk 0:00:23]}  dxe4 {[%clk 0:00:28]} 38. Re5 {[%clk 0:00:22]}  Kg8 {[%clk 0:00:27]} 39. Rb1 {[%clk 0:00:15]}  Rc7 {[%clk 0:00:25]} 40. Rxe4 {[%clk 0:00:15]}  Rh7+ {[%clk 0:00:25]} 41. Kg3 {[%clk 0:00:15]}  Rh5 {[%clk 0:00:26]} 42. Reb4 {[%clk 0:00:13]}  Rhxc5 {[%clk 0:00:26]} 43. Rxb7 {[%clk 0:00:14]}  Rxb7 {[%clk 0:00:25]} 44. Rxb7 {[%clk 0:00:15]}  Ra5 {[%clk 0:00:25]} 45. Rb4 {[%clk 0:00:15]}  Kf8 {[%clk 0:00:24]} 46. Kg4 {[%clk 0:00:15]}  Kg7 {[%clk 0:00:24]} 47. Rc4 {[%clk 0:00:13]}  Kf6 {[%clk 0:00:24]} 48. Rb4 {[%clk 0:00:13]}  Ke7 {[%clk 0:00:24]} 49. Rb7+ {[%clk 0:00:12]}  Kf6 {[%clk 0:00:23]} 50. Rb4 {[%clk 0:00:12]}  e5 {[%clk 0:00:22]} 51. fxe5+ {[%clk 0:00:11]}  Kxe5 {[%clk 0:00:22]} 52. Kg5 {[%clk 0:00:11]}  Ke6+ {[%clk 0:00:22]} 53. Kg4 {[%clk 0:00:10]}  f6 {[%clk 0:00:21]} 54. Rc4 {[%clk 0:00:10]}  Kd5 {[%clk 0:00:16]} 55. Rb4 {[%clk 0:00:09]}  Ke5 {[%clk 0:00:15]} 56. Rc4 {[%clk 0:00:09]}  Rd5 {[%clk 0:00:14]} 57. Kf3 {[%clk 0:00:04]}  Rd3+ {[%clk 0:00:14]} 58. Ke2 {[%clk 0:00:05]}  Rd4 {[%clk 0:00:14]} 59. Rc5+ {[%clk 0:00:03]}  Kf4 {[%clk 0:00:13]} 60. Ra5 {[%clk 0:00:04]}  Rd7 {[%clk 0:00:12]} 61. Ra6 {[%clk 0:00:04]}  f5 {[%clk 0:00:11]} 62. Rxg6 {[%clk 0:00:02]}  Rb7 {[%clk 0:00:10]} 63. Ra6 {[%clk 0:00:01]}  Ke4 {[%clk 0:00:08]} 64. Re6+ {[%clk 0:00:01]}  Kf4 {[%clk 0:00:09]} 65. Ra6 {[%clk 0:00:01]}  Rb2+ {[%clk 0:00:10]} 66. Kd3 {[%clk 0:00:02]}  Rb7 {[%clk 0:00:10]} 67. Re6 {[%clk 0:00:02]}  Kf3 {[%clk 0:00:08]} 68. Rf6 {[%clk 0:00:02]}  f4 {[%clk 0:00:08]} 69. Rf8 {[%clk 0:00:02]}  Re7 {[%clk 0:00:07]} 70. Kc3 {[%clk 0:00:03]}  Ke3 {[%clk 0:00:07]} 71. Kc2 {[%clk 0:00:02]}  f3 {[%clk 0:00:07]} 72. Kd1 {[%clk 0:00:03]}  Kf2 {[%clk 0:00:07]} 73. Kd2 {[%clk 0:00:03]}  Re2+ {[%clk 0:00:06]} 74. Kd1 {[%clk 0:00:02]}  Re7 {[%clk 0:00:07]} 75. Rd8 {[%clk 0:00:01]}  Kf1 {[%clk 0:00:07]} 76. Rf8 {[%clk 0:00:01]}  f2 {[%clk 0:00:07]} 77. Kd2 {[%clk 0:00:02]}  Rg7 {[%clk 0:00:05]} 78. Ke3 {[%clk 0:00:02]}  Ke1 {[%clk 0:00:03]} 79. Rxf2 {[%clk 0:00:01]}  Re7+ {[%clk 0:00:04]} 0-1